bitfinex-derivatives/quotes_SOLF0:USTF0_20250428
["timestamp","ask_amount","ask_price","bid_price","bid_amount"]
[1745855309515,23.78260966,145.98,145.92,6.8506]
[1745855309915,6.8491,145.96,145.92,6.8506]
[1745855310119,23.78260966,145.98,145.93,6.8499]
[1745855310321,23.78260966,145.98,145.9,1.9586]
[1745855310616,23.78260966,145.98,145.89,28.88]
[1745855311313,23.78260966,145.98,145.91,6.8511]
[1745855311717,6.8498,145.94,145.9,6.8514]
[1745855312018,53.04260966,145.95,145.87,361.0]
[1745855312219,6.8505,145.93,145.86,31.2186]
[1745855312515,53.04260966,145.95,145.86,31.2186]
[1745855312815,6.8507,145.92,145.89,6.8518]
[1745855313016,53.04260966,145.95,145.89,6.8518]
[1745855313216,53.04260966,145.95,145.86,31.2186]
[1745855313416,6.8503,145.93,145.86,31.2186]
[1745855313617,53.04260966,145.95,145.86,31.2186]
[1745855313917,6.8503,145.93,145.89,6.8517]
[1745855314416,23.78260966,145.92,145.81,361.0]
[1745855314619,23.78260966,145.89,145.81,361.0]
[1745855315221,23.78260966,145.89,145.82,6.855]
[1745855315419,23.78260966,145.89,145.81,361.0]
[1745855315723,6.8519,145.9,145.81,361.0]
[1745855315924,29.28,145.91,145.81,361.0]
[1745855316122,29.28,145.91,145.87,6.853]
[1745855316323,29.28,145.91,145.81,361.0]
[1745855316623,31.3515,145.92,145.82,29.28]
[1745855317222,6.8514,145.91,145.87,6.8527]
[1745855317423,2.0715,145.92,145.83,23.78260966]
[1745855317718,29.28,145.93,145.83,23.78260966]
[1745855317923,29.28,145.93,145.82,29.28]
[1745855317924,29.28,145.93,145.86,23.78260966]
[1745855318223,2.0077,145.94,145.86,53.06260966]
[1745855318424,2.0077,145.94,145.89,6.8517]
[1745855319024,23.78260966,145.92,145.8,29.28]
[1745855319223,23.78260966,145.88,145.8,29.28]
[1745855320024,6.8532,145.87,145.83,6.8545]
[1745855320522,23.78260966,145.88,145.8,29.28]
[1745855320723,30.63540966,145.88,145.8,29.28]
[1745855321124,30.63540966,145.88,145.83,6.8545]
[1745855321328,30.63540966,145.88,145.8,29.28]
[1745855321623,23.78260966,145.88,145.8,29.28]
[1745855322125,30.63550966,145.88,145.8,29.28]
[1745855322326,23.78260966,145.88,145.84,6.8542]
[1745855322523,23.78260966,145.88,145.8,29.28]
[1745855322724,6.8535,145.86,145.8,29.28]
[1745855322927,23.78260966,145.88,145.8,29.28]
[1745855323230,6.8531,145.87,145.83,6.8545]
[1745855323531,23.78260966,145.88,145.83,6.8545]
[1745855323729,6.8538,145.86,145.82,6.8549]
[1745855323927,23.78260966,145.88,145.8,29.28]
[1745855324831,6.8533,145.87,145.83,6.8546]
[1745855325131,6.8533,145.87,145.8,29.28]
[1745855325328,6.8529,145.88,145.84,6.854]
[1745855325626,55.12630966,145.91,145.8,29.28]
[1745855325930,55.12630966,145.91,145.83,6.8547]
[1745855326832,55.12630966,145.91,145.8,29.28]
[1745855327634,6.853,145.88,145.8,29.28]
[1745855327834,6.853,145.88,145.84,6.8541]
[1745855328035,55.12630966,145.91,145.84,6.8541]
[1745855328529,55.12630966,145.91,145.83,6.8546]
[1745855328834,55.12630966,145.91,145.8,29.28]
[1745855329031,2.0077,145.94,145.9,6.8514]
[1745855329232,29.3,145.96,145.88,29.3]
[1745855329430,6.8495,145.95,145.88,29.3]
[1745855329628,29.3,145.96,145.88,29.3]
[1745855329828,1.9525,145.97,145.88,29.3]
[1745855330130,1.9525,145.97,145.9,6.8513]
[1745855330328,23.78260966,145.95,145.84,1.9333]
[1745855330534,23.78260966,145.92,145.82,524.646]
[1745855330836,6.8521,145.89,145.85,6.8538]
[1745855331132,23.78260966,145.92,145.85,6.8538]
[1745855331334,6.8525,145.88,145.85,6.8538]
[1745855331535,365.0,146.05,145.85,6.8538]
[1745855331536,23.78260966,146.05,145.88,361.0]
[1745855331829,23.78260966,146.02,145.9,23.78260966]
[1745855332030,23.78260966,145.99,145.89,29.3]
[1745855332334,53.08260966,145.99,145.89,29.3]
[1745855332530,6.8486,145.97,145.91,6.851]
[1745855332729,2.1273,145.98,145.89,29.3]
[1745855332933,1.9835,145.97,145.89,29.3]
[1745855333437,23.78260966,145.96,145.89,29.3]
[1745855333736,25.80430966,145.96,145.89,29.3]
[1745855334334,25.80430966,145.96,145.86,29.3]
[1745855334637,6.8501,145.94,145.89,6.8517]
[1745855334836,25.80430966,145.96,145.86,29.3]
[1745855335334,6.8494,145.95,145.86,29.3]
[1745855335638,25.80430966,145.96,145.86,29.3]
[1745855335937,6.8498,145.94,145.9,6.8512]
[1745855336129,25.80430966,145.96,145.86,29.3]
[1745855336630,6.8495,145.95,145.91,6.8509]
[1745855336831,6.8495,145.95,145.86,29.3]
[1745855338137,6.8495,145.95,145.92,6.8506]
[1745855340441,2.0217,145.96,145.87,23.78260966]
[1745855340641,2.0217,145.96,145.86,29.3]
[1745855340939,6.85,145.94,145.86,29.3]
[1745855341539,6.8502,145.93,145.86,29.3]
[1745855341740,29.0,145.95,145.86,29.3]
[1745855342039,6.8504,145.93,145.9,6.8514]
[1745855342434,29.0,145.95,145.86,29.3]
[1745855342641,29.0,145.95,145.92,6.8503]
[1745855342939,2.0217,145.96,145.87,23.78260966]
[1745855343141,1.9835,145.97,145.87,23.78260966]
[1745855343340,1.9835,145.97,145.9,23.78260966]
[1745855343533,8.8912,146.01,145.98,6.8476]
[1745855343740,4.1004,146.01,145.91,29.0]
[1745855343933,4.1004,146.01,145.93,23.78260966]
[1745855344140,10.9468,146.01,145.98,6.8476]
[1745855344340,4.1004,146.01,145.95,29.0]
[1745855345142,6.8478,145.98,145.95,35.8491]
[1745855345341,4.1004,146.01,145.92,29.0]
[1745855345742,4.1004,146.01,145.95,6.849]
[1745855345940,4.1004,146.01,145.92,29.0]
[1745855346141,6.8476,145.99,145.92,29.0]
[1745855346444,2.0557,146.01,145.93,23.78260966]
[1745855347243,8.9021,146.01,145.93,23.78260966]
[1745855347544,2.0557,146.01,145.93,23.78260966]
[1745855347944,6.8469,146.0,145.97,6.8479]
[1745855348243,6.8469,146.0,145.93,23.78260966]
[1745855349244,6.8469,146.0,145.97,6.8479]
[1745855349443,6.8474,145.99,145.97,6.8479]
[1745855349644,6.8474,145.99,145.93,23.78260966]
[1745855349846,6.8474,145.99,145.96,6.8486]
[1745855350346,6.8474,145.99,145.97,6.8482]
[1745855350542,6.8471,146.0,145.97,6.8482]
[1745855351445,6.8474,145.99,145.97,6.8482]
[1745855352347,6.847,146.0,145.98,6.8477]
[1745855352842,31.1022,146.05,146.0,6.8466]
[1745855353047,31.1022,146.05,145.96,29.0]
[1745855353342,6.8456,146.03,145.96,29.0]
[1745855353742,6.8452,146.04,145.96,29.0]
[1745855353942,2.1022,146.05,145.96,29.0]
[1745855354247,6.8457,146.03,145.96,29.0]
[1745855354449,23.78260966,146.04,145.97,6.848]
[1745855354646,23.78260966,146.04,145.96,29.0]
[1745855354845,6.8461,146.02,145.96,29.0]
[1745855355040,23.78260966,146.04,145.98,6.8475]
[1745855355249,2.1022,146.05,145.96,29.0]
[1745855355443,23.78260966,146.04,145.96,29.0]
[1745855355649,52.76260966,146.04,145.93,28.98]
[1745855355947,6.8481,145.98,145.93,28.98]
[1745855356346,23.78260966,146.01,145.93,28.98]
[1745855356547,23.78260966,146.01,145.95,6.849]
[1745855356847,23.78260966,146.01,145.93,28.98]
[1745855357048,6.8486,145.97,145.94,6.8494]
[1745855357448,6.8496,145.95,145.93,28.98]
[1745855357648,23.78260966,145.98,145.92,361.0]
[1745855357950,2.0169,145.97,145.91,6.8508]
[1745855358250,2.0169,145.97,145.9,28.98]
[1745855358654,6.8499,145.94,145.9,28.98]
[1745855359049,2.0169,145.97,145.9,28.98]
[1745855359553,2.0169,145.97,145.9,35.8312]
[1745855360554,2.0169,145.97,145.9,28.98]
[1745855361054,6.8502,145.93,145.9,35.8314]
[1745855361555,6.8502,145.93,145.91,6.8511]
[1745855361751,6.8502,145.93,145.9,28.98]
[1745855362155,6.8502,145.93,145.9,35.8313]
[1745855362350,6.8499,145.94,145.9,28.98]
[1745855362656,6.8499,145.94,145.91,6.8509]
[1745855363555,6.8502,145.93,145.91,6.8509]
[1745855363857,2.0169,145.97,145.9,28.98]
[1745855364155,29.0,145.96,145.87,29.0]
[1745855364354,29.0,145.96,145.91,6.8508]
[1745855364554,29.0,145.96,145.87,29.0]
[1745855364751,2.0169,145.97,145.87,29.0]
[1745855364957,2.0169,145.97,145.88,23.78260966]
[1745855365655,2.0169,145.97,145.87,29.0]
[1745855365861,23.78260966,145.96,145.87,29.0]
[1745855366056,6.8507,145.92,145.89,6.8517]
[1745855367161,6.8507,145.92,145.9,6.8515]
[1745855367661,6.8504,145.93,145.9,6.8515]
[1745855368061,23.78260966,145.96,145.9,6.8515]
[1745855368761,6.8504,145.93,145.9,6.8515]
[1745855369859,29.0,145.95,145.87,29.0]
[1745855370054,23.78260966,145.93,145.87,29.0]
[1745855370260,23.78260966,145.93,145.84,521.96]
[1745855370557,6.8519,145.9,145.86,6.8532]
[1745855371061,6.8519,145.9,145.84,521.96]
[1745855371259,25.74990966,145.93,145.84,521.96]
[1745855371963,6.8508,145.92,145.89,6.8519]
[1745855372159,23.78260966,145.93,145.89,6.8519]
[1745855372355,23.78260966,145.93,145.84,521.96]
[1745855372862,6.851,145.92,145.88,6.8522]
[1745855373063,23.78260966,145.93,145.88,6.8522]
[1745855373362,6.8509,145.92,145.88,6.8522]
[1745855373663,23.78260966,145.93,145.88,6.8522]
[1745855373962,6.8513,145.91,145.88,6.8522]
[1745855374263,23.78260966,145.93,145.89,6.852]
[1745855374563,6.8509,145.92,145.89,6.852]
[1745855375265,6.8511,145.91,145.89,6.852]
[1745855375466,23.78260966,145.93,145.89,6.852]
[1745855375659,23.78260966,145.93,145.88,6.8522]
[1745855375861,6.8509,145.92,145.88,6.8522]
[1745855376061,23.78260966,145.93,145.84,521.96]
[1745855376464,6.8513,145.91,145.84,521.96]
[1745855376866,23.78260966,145.93,145.87,6.8526]
[1745855377068,6.8518,145.9,145.87,6.8526]
[1745855377365,23.78260966,145.93,145.84,521.96]
[1745855377566,23.78260966,145.93,145.86,6.8531]
[1745855377766,23.78260966,145.93,145.84,521.96]
[1745855378166,6.8518,145.9,145.84,521.96]
[1745855378563,23.78260966,145.93,145.84,521.96]
[1745855378765,29.0,145.95,145.85,23.78260966]
[1745855379260,6.8498,145.94,145.91,6.8506]
[1745855380563,23.78260966,145.96,145.9,6.8515]
[1745855380868,23.78260966,145.96,145.89,28.42]
[1745855381259,23.78260966,145.96,145.9,6.8514]
[1745855381663,6.8508,145.92,145.89,28.42]
[1745855381967,6.8508,145.92,145.9,6.8514]
[1745855383271,6.8504,145.93,145.9,6.8514]
[1745855384072,6.8504,145.93,145.91,6.8511]
[1745855384365,3.9842,145.97,145.89,28.42]
[1745855384572,2.0169,145.97,145.89,28.42]
[1745855384769,2.0169,145.97,145.93,6.8499]
[1745855384969,2.0169,145.97,145.89,28.42]
[1745855385263,28.42,145.98,145.89,28.42]
[1745855385471,23.78260966,145.97,145.89,28.42]
[1745855385668,23.78260966,145.97,145.9,6.8515]
[1745855385869,23.78260966,145.97,145.89,28.42]
[1745855386068,6.8502,145.93,145.89,28.42]
[1745855386372,6.8502,145.93,145.9,6.8515]
[1745855386573,23.78260966,145.97,145.9,6.8515]
[1745855386973,23.78260966,145.97,145.89,28.42]
[1745855387572,23.78260966,145.94,145.86,30.5463]
[1745855387777,6.8517,145.9,145.86,30.5463]
[1745855387978,6.8517,145.9,145.87,6.8526]
[1745855388980,6.8521,145.89,145.87,6.8526]
[1745855389681,52.20260966,145.94,145.86,35.2733]
[1745855389977,2.0064,145.93,145.86,35.2733]
[1745855390374,5.9816,145.93,145.86,35.2733]
[1745855390987,6.8528,145.88,145.86,28.42]
[1745855391474,5.9816,145.93,145.86,35.2734]
[1745855391671,6.8525,145.88,145.86,35.2734]
[1745855391875,5.9816,145.93,145.86,35.2734]
[1745855392179,6.8523,145.89,145.86,35.2734]
[1745855392674,5.9816,145.93,145.87,6.853]
[1745855392880,6.8524,145.89,145.86,28.42]
[1745855393475,6.8518,145.9,145.87,6.8528]
[1745855393780,23.78260966,145.91,145.83,361.0]
[1745855393977,23.78260966,145.91,145.85,6.8537]
[1745855394178,23.78260966,145.88,145.83,389.42]
[1745855394378,23.78260966,145.88,145.83,35.2747]
[1745855394580,6.8538,145.86,145.83,35.2747]
[1745855395083,6.854,145.85,145.83,35.2747]
[1745855395283,23.78260966,145.88,145.83,35.2747]
[1745855395584,6.8537,145.86,145.83,35.2747]
[1745855395783,23.78260966,145.88,145.83,35.2747]
[1745855396183,6.8535,145.86,145.84,6.8544]
[1745855396983,6.8532,145.87,145.84,6.8544]
[1745855397183,23.78260966,145.88,145.84,6.8544]
[1745855397490,6.8532,145.87,145.84,6.8544]
[1745855398289,6.8535,145.86,145.83,35.2747]
[1745855398484,6.8535,145.86,145.83,28.42]
[1745855398887,6.8535,145.86,145.84,6.8544]
[1745855400283,6.8531,145.87,145.84,6.8544]
[1745855400484,34.4016,145.93,145.83,28.42]
[1745855400889,6.8523,145.89,145.86,6.853]
[1745855401089,34.4016,145.93,145.83,28.42]
[1745855401391,6.8521,145.89,145.83,28.42]
[1745855401583,14.90595269,145.87,145.83,28.42]
[1745855401987,6.8541,145.85,145.8,28.0]
[1745855402289,6.8541,145.85,145.82,6.8549]
[1745855402493,6.8548,145.84,145.8,28.0]
[1745855402790,6.8548,145.84,145.82,6.8551]
[1745855403091,6.8541,145.85,145.8,28.0]
[1745855403394,42.90595269,145.92,145.82,14.90595269]
[1745855403591,6.8523,145.89,145.82,14.90595269]
[1745855403794,14.90595269,145.9,145.82,14.90595269]
[1745855404091,14.90595269,145.9,145.8,28.0]
[1745855404092,6.8536,145.86,145.8,42.90595269]
[1745855404389,14.90595269,145.88,145.8,28.0]
[1745855404593,6.8538,145.86,145.8,28.0]
[1745855404790,14.90595269,145.88,145.83,6.8546]
[1745855405492,6.8537,145.86,145.8,28.0]
[1745855405692,23.8622078,145.88,145.8,28.0]
[1745855405895,6.8539,145.86,145.8,28.0]
[1745855406093,23.8622078,145.88,145.82,6.8549]
[1745855406393,6.8539,145.86,145.8,28.0]
[1745855406593,23.8622078,145.88,145.8,28.0]
[1745855407593,6.8541,145.85,145.82,6.8551]
[1745855407893,23.8622078,145.88,145.82,6.8551]
[1745855408092,23.8622078,145.88,145.8,28.0]
[1745855408784,6.8538,145.86,145.83,6.8545]
[1745855408987,6.8538,145.86,145.8,28.0]
[1745855409291,28.0,145.92,145.8,51.8622078]
[1745855410396,6.8518,145.9,145.8,51.8622078]
[1745855410692,28.0,145.92,145.83,23.8622078]
[1745855410895,8.8568,145.93,145.9,6.8512]
[1745855411096,8.8568,145.93,145.84,30.0588]
[1745855411296,2.0064,145.93,145.84,30.0588]
[1745855411598,6.8509,145.92,145.89,6.8516]
[1745855411994,8.8568,145.93,145.91,6.8511]
[1745855412194,2.0064,145.93,145.84,30.0588]
[1745855412492,8.8568,145.93,145.9,6.8513]
[1745855412697,51.8622078,145.95,145.88,28.0]
[1745855412997,6.8499,145.94,145.91,6.8507]
[1745855413197,51.8622078,145.95,145.91,6.8507]
[1745855413397,51.8622078,145.95,145.88,28.0]
[1745855413798,51.8622078,145.95,145.85,28.0]
[1745855413995,6.8523,145.89,145.86,6.8531]
[1745855414497,6.8523,145.89,145.85,28.0]
[1745855415198,6.8526,145.88,145.86,6.8533]
[1745855415396,6.8526,145.88,145.85,28.0]
[1745855415597,2.0355,145.9,145.85,28.0]
[1745855415799,6.8522,145.89,145.86,6.8532]
[1745855415997,2.0355,145.9,145.82,28.0]
[1745855416197,23.8622078,145.88,145.82,28.0]
[1745855416497,23.8622078,145.88,145.83,6.8546]
[1745855416699,23.8622078,145.88,145.82,28.0]
[1745855416994,6.8532,145.87,145.84,6.8543]
[1745855418200,6.8535,145.86,145.84,6.8543]
[1745855418396,6.8535,145.86,145.83,6.8547]
[1745855418903,6.8532,145.87,145.82,28.0]
[1745855419100,6.8532,145.87,145.83,6.8545]
[1745855419399,6.8535,145.86,145.83,6.8545]
[1745855420497,6.854,145.85,145.82,34.8551]
[1745855420695,23.8622078,145.88,145.79,28.0]
[1745855420894,6.8551,145.83,145.79,28.0]
[1745855421101,28.0,145.87,145.79,28.0]
[1745855421404,6.8549,145.83,145.79,28.0]
[1745855422000,6.8549,145.83,145.8,6.856]
[1745855422300,6.8554,145.82,145.8,6.856]
[1745855422499,23.8622078,145.82,145.75,28.0]
[1745855422904,6.857,145.79,145.75,28.0]
[1745855423200,6.857,145.79,145.76,6.8579]
[1745855423403,6.8572,145.78,145.76,6.8579]
[1745855423605,25.9660078,145.82,145.76,6.8579]
[1745855424105,25.9660078,145.82,145.75,28.0]
[1745855424106,6.8573,145.78,145.75,34.8584]
[1745855424293,25.9660078,145.82,145.71,25.9160078]
[1745855424498,25.9660078,145.82,145.72,28.0]
[1745855424799,28.0542078,145.82,145.75,6.8586]
[1745855425204,6.8574,145.78,145.75,6.8586]
[1745855425506,23.8622078,145.79,145.72,28.0]
[1745855426002,6.8575,145.78,145.74,6.8587]
[1745855426205,6.8575,145.78,145.72,28.0]
[1745855426500,23.8622078,145.79,145.72,28.0]
[1745855426705,2.0457,145.81,145.72,28.0]
[1745855427205,8.9019,145.81,145.72,28.0]
[1745855427801,2.0457,145.81,145.78,6.8568]
[1745855428201,2.0457,145.81,145.79,6.8567]
[1745855428407,2.1038,145.82,145.76,28.02]
[1745855429004,28.02,145.86,145.77,23.8622078]
[1745855429199,28.02,145.89,145.77,25.8022078]
[1745855430207,28.02,145.89,145.82,6.855]
[1745855430507,23.8622078,145.88,145.8,28.02]
[1745855430706,6.8545,145.84,145.81,6.8557]
[1745855430908,23.8622078,145.88,145.8,28.02]
[1745855431406,6.8549,145.83,145.8,34.876]
[1745855431905,23.8622078,145.85,145.77,29.94]
[1745855432105,6.8553,145.82,145.79,6.8564]
[1745855432306,6.8553,145.82,145.77,29.94]
[1745855432708,30.0466,145.84,145.77,28.0]
[1745855432908,34.1347,145.84,145.77,28.0]
[1745855433104,6.8563,145.8,145.77,28.0]
[1745855433612,6.8561,145.81,145.78,6.8571]
[1745855435709,6.8564,145.8,145.78,6.8571]
[1745855436113,34.1347,145.84,145.78,6.8571]
[1745855436515,6.8562,145.81,145.78,6.8571]
[1745855436814,34.1347,145.84,145.77,34.8574]
[1745855437315,6.8566,145.8,145.77,34.8574]
[1745855437512,23.8622078,145.91,145.77,51.8622078]
[1745855437708,51.2477078,146.02,145.81,23.8622078]
[1745855437709,6.8518,145.9,145.81,23.8622078]
[1745855437908,6.8518,145.9,145.86,6.8532]
[1745855438108,2.0108,145.92,145.82,28.0]
[1745855438308,6.8513,145.91,145.82,28.0]
[1745855438518,2.0108,145.92,145.82,28.0]
[1745855438820,6.8513,145.91,145.82,28.0]
[1745855439019,2.0108,145.92,145.82,28.0]
[1745855439020,2.0108,145.92,145.84,23.8622078]
[1745855439220,28.0,145.96,145.85,2.0737]
[1745855439409,6.851,145.92,145.9,6.8515]
[1745855439917,6.8503,145.93,145.9,6.8515]
[1745855440117,25.8730078,145.95,145.91,6.8511]
[1745855440418,6.8507,145.92,145.86,28.0]
[1745855440615,25.8730078,145.95,145.86,28.0]
[1745855441019,6.8509,145.92,145.86,28.0]
[1745855441419,25.8730078,145.95,145.88,6.8522]
[1745855441618,25.8730078,145.95,145.86,28.0]
[1745855442019,25.8730078,145.95,145.87,6.8528]
[1745855442313,6.8518,145.9,145.87,6.8528]
[1745855442521,25.8730078,145.95,145.86,28.0]
[1745855442822,6.8507,145.92,145.86,28.0]
[1745855443319,25.8730078,145.95,145.86,28.0]
[1745855443519,2.0108,145.95,145.86,28.0]
[1745855444013,8.8603,145.95,145.86,28.0]
[1745855444214,2.0108,145.95,145.93,6.8501]
[1745855444510,8.8604,145.95,145.9,28.0]
[1745855444716,2.0108,145.95,145.92,6.8505]
[1745855444917,2.0108,145.95,145.9,28.0]
[1745855445221,6.8497,145.94,145.91,6.8508]
[1745855445518,2.0108,145.95,145.9,28.0]
[1745855445714,6.8496,145.95,145.91,6.8508]
[1745855445908,28.0536078,145.98,145.91,6.8508]
[1745855446114,28.0536078,145.98,145.9,28.0]
[1745855446315,6.8504,145.93,145.9,34.8513]
[1745855446612,28.0536078,145.98,145.9,28.0]
[1745855446812,6.85,145.94,145.91,6.8508]
[1745855447112,28.0536078,145.98,145.91,6.8508]
[1745855448020,6.8498,145.94,145.91,6.8508]
[1745855448222,28.0536078,145.98,145.91,6.8508]
[1745855448521,28.0536078,145.98,145.9,28.0]
[1745855449022,28.0536078,145.98,145.91,6.8507]
[1745855449218,28.0536078,145.98,145.9,28.0]
[1745855449522,2.0527,145.99,145.9,28.0]
[1745855449723,6.8484,145.97,145.9,28.0]
[1745855449920,2.0527,145.99,145.9,28.0]
[1745855450925,6.8483,145.97,145.9,28.0]
[1745855451225,6.8483,145.97,145.94,6.8494]
[1745855451428,6.849,145.96,145.94,27.98]
[1745855451726,2.0527,145.99,145.94,27.98]
[1745855452126,6.8492,145.95,145.94,27.98]
[1745855452632,2.0527,145.99,145.91,27.98]
[1745855453328,2.0527,145.99,145.92,6.8503]
[1745855453828,2.0527,145.99,145.91,27.98]
[1745855454128,6.8492,145.96,145.93,6.8501]
[1745855454427,2.0527,145.99,145.91,27.98]
[1745855455328,6.8495,145.95,145.92,6.8502]
[1745855455830,23.8622078,145.98,145.92,6.8502]
[1745855456330,23.8622078,145.98,145.91,27.98]
[1745855456731,6.8492,145.96,145.93,6.85]
[1745855458031,6.8492,145.96,145.94,6.8496]
[1745855458226,6.8483,145.97,145.91,27.98]
[1745855458733,23.8622078,145.98,145.91,27.98]
[1745855459333,6.8495,145.95,145.92,6.8504]
[1745855460233,6.8495,145.95,145.93,6.85]
[1745855460438,23.8622078,145.98,145.91,27.98]
[1745855460737,23.8622078,145.98,145.92,6.8504]
[1745855461030,23.8622078,145.98,145.91,27.98]
[1745855461333,23.8622078,145.95,145.89,6.8518]
[1745855461533,23.8622078,145.95,145.88,27.98]
[1745855461732,23.8622078,145.95,145.81,495.0716]
[1745855461733,23.8622078,145.95,145.85,27.98]
[1745855461933,23.8622078,145.95,145.88,6.8524]
[1745855462637,23.8622078,145.95,145.85,27.98]
[1745855462836,23.8622078,145.92,145.85,27.98]
[1745855463032,2.0692,145.91,145.85,27.98]
[1745855463731,2.0692,145.91,145.81,495.0716]
[1745855463937,23.8622078,145.89,145.82,27.98]
[1745855464128,6.8535,145.86,145.82,27.98]
[1745855464328,23.8622078,145.89,145.82,27.98]
[1745855464534,6.8532,145.87,145.84,6.8541]
[1745855464732,6.8532,145.87,145.82,27.98]
[1745855464933,23.8622078,145.89,145.82,27.98]
[1745855465134,6.8527,145.88,145.85,6.8538]
[1745855465640,23.8622078,145.89,145.82,27.98]
[1745855466239,27.98,145.9,145.82,27.98]
[1745855466638,6.219,145.91,145.82,27.98]
[1745855466843,6.8517,145.9,145.87,6.8527]
[1745855467136,6.219,145.91,145.82,27.98]
[1745855467338,2.0692,145.91,145.83,25.9305078]
[1745855467538,27.98,145.94,145.83,25.9305078]
[1745855467738,1.9636,145.96,145.86,23.8622078]
[1745855467939,1.9636,145.96,145.87,27.98]
[1745855468143,23.8622078,145.95,145.87,27.98]
[1745855468341,1.9636,145.96,145.87,27.98]
[1745855468541,8.8126,145.96,145.93,6.8501]
[1745855468740,1.9636,145.96,145.87,27.98]
[1745855469146,1.9636,145.96,145.89,23.8622078]
[1745855469535,8.8125,145.96,145.93,6.8498]
[1745855469740,1.9636,145.96,145.92,27.98]
[1745855470246,1.9636,145.96,145.94,6.8494]
[1745855470945,8.8125,145.96,145.93,6.8499]
[1745855471146,27.98,146.0,145.92,27.98]
[1745855471341,4.2034,146.01,145.92,27.98]
[1745855471342,6.2069,146.01,145.92,51.8422078]
[1745855471544,2.0035,146.01,145.98,6.8475]
[1745855471748,497.3052,146.05,145.96,27.98]
[1745855471948,6.1287,146.05,145.97,27.98]
[1745855472143,6.8457,146.03,145.97,27.98]
[1745855472448,6.1287,146.05,145.97,27.98]
[1745855473154,6.8468,146.01,145.97,27.98]
[1745855473753,6.8468,146.01,145.97,34.828]
[1745855474153,6.847,146.0,145.97,34.828]
[1745855474853,6.8466,146.01,145.97,34.828]
[1745855475555,6.8456,146.03,145.97,27.98]
[1745855475752,2.0035,146.05,145.97,27.98]
[1745855476655,6.8467,146.01,145.97,34.8279]
[1745855476861,2.0035,146.05,145.97,27.98]
[1745855477156,6.8462,146.02,145.98,6.8475]
[1745855477457,2.0035,146.05,145.97,27.98]
[1745855477758,6.8459,146.03,145.99,6.8471]
[1745855477956,2.0035,146.05,145.99,6.8471]
[1745855478452,2.0035,146.05,146.0,6.8469]
[1745855478655,2.0035,146.05,145.97,27.98]
[1745855478958,6.8456,146.03,145.99,6.8469]
[1745855479256,2.0035,146.05,145.97,27.98]
[1745855479753,6.8455,146.03,145.97,27.98]
[1745855480355,6.8455,146.03,145.99,6.847]
[1745855480551,2.0035,146.05,145.97,27.98]
[1745855481157,6.8456,146.03,145.97,27.98]
[1745855481359,6.8456,146.03,145.99,6.8471]
[1745855481658,2.0035,146.05,145.97,27.98]
[1745855482056,6.8468,146.01,145.98,6.8475]
[1745855482256,2.0035,146.05,145.97,27.98]
[1745855482555,6.8456,146.03,145.97,27.98]
[1745855482756,2.0035,146.05,145.97,27.98]
[1745855483158,2.0035,146.05,145.99,6.8471]
[1745855483459,2.0035,146.05,145.97,27.98]
[1745855483649,2.0035,146.05,145.99,6.8469]
[1745855483958,2.0035,146.05,145.97,27.98]